Cogmind - Beta 9 *** ADVENTURER MODE // 2019.10.27 @ 13:29:52 Player: Bob Result: Self-destructed Performance ------------- Evolutions (1) 500 Regions Visited (2) 400 Robots Destroyed (15) 75 Value Destroyed (321) 321 Prototype IDs (2) 40 Alien Tech Used (0) 0 Bonus (0) 0 TOTAL SCORE: 1336 Bonus ------- None Cogmind --------- Core Integrity 400/400 Matter 253/300 Energy 250/250 System Corruption 0% Temperature Cool (12) Location -9/Materials Parts ------- Power (1) Ion Engine Propulsion (3) Light Treads Light Treads Light Treads Utility (2) Small Storage Unit Tractor Beam Weapon (3) Assault Rifle Assault Rifle Assault Rifle Inventory (6) Large Matter Pod (150) Seismic Analyzer Assault Rifle Grenade Launcher Peak State ------------ Power Ion Engine Propulsion Light Treads Light Treads Light Treads Utility Small Storage Unit Tractor Beam Weapon Assault Rifle Assault Rifle Assault Rifle Inventory Large Matter Pod Seismic Analyzer Assault Rifle Grenade Launcher [Rating: 9] Favorites ----------- Power Ion Engine Engine Ion Engine Propulsion Light Treads Treads Light Treads Utility Small Storage Unit Device Tractor Beam Storage Small Storage Unit Weapon Light Assault Rifle Energy Gun Medium Laser Ballistic Gun Light Assault Rifle Build | -11 -10 -9 ------- Run | Scr Mat Mat Slots Evolved 2 | . . 2 Power . | . . . Propulsion 1 | . . 1 Utility . | . . . Weapon 1 | . . 1 Parts Attached 16 | 6 8 2 Power 1 | 1 . . Engine 1 | 1 . . Core . | . . . Reactor . | . . . Propulsion 6 | 2 3 1 Treads 6 | 2 3 1 Leg . | . . . Wheel . | . . . Hover . | . . . Flight . | . . . Utility 2 | 1 1 . Device 1 | . 1 . Storage 1 | 1 . . Processor . | . . . Hackware . | . . . Protection . | . . . Artifact . | . . . Weapon 7 | 2 4 1 Energy Gun 1 | 1 . . Energy Cannon . | . . . Ballistic Gun 6 | 1 4 1 Ballistic Cannon . | . . . Launcher . | . . . Special Weapon . | . . . Impact Weapon . | . . . Slashing Weapon . | . . . Piercing Weapon . | . . . Special Melee Weapon . | . . . Unidentified Prototypes . | . . . Parts Lost 1 | . 1 . Power . | . . . Propulsion . | . . . Utility . | . . . Weapon 1 | . 1 . Highest Loss Streak 1 | . 1 . Average Slot Usage (%) 90 | . 89 100 Engine 13 | . 14 11 Treads 28 | . 28 33 Device 5 | . 5 11 Storage 13 | . 14 11 Energy Gun 6 | . 6 . Ballistic Gun 21 | . 20 33 Naked Turns . | . . . Heaviest Build 16 | 12 14 16 Greatest Support 60 | 40 40 60 Greatest Overweight (x) . | . . . Average Overweight (x) . | . . . Largest Inventory Capacity 6 | 6 6 6 Average Capacity 5 | 5 6 6 Most Carried 6 | 4 6 5 Average Carried 2 | . 2 4 Final Capacity 6 | . . 6 Final Carried 4 | . . 4 Class Distribution -------------------- 93% | Mutant 6% | Gunner Dominant Class ---------------- Mutant | -10/Materials Gunner | -9/Materials Resources | -11 -10 -9 ----------- Run | Scr Mat Mat Matter Collected 545 | 217 328 . Remotely 96 | . 96 . Salvage Created 539 | . 539 . Parts 37 | . 37 . Haulers Intercepted 2 | . 2 . Recyclers Shooed . | . . . Parts Field Recycled . | . . . Retrieved Matter . | . . . Parts Self-Destructed . | . . . Prevented . | . . . Kills | -11 -10 -9 ------- Run | Scr Mat Mat Combat Hostiles Destroyed 10 | . 10 . Guns 10 | . 10 . Classes Destroyed 6 | . 6 . Worker 1 | . 1 . Hauler 2 | . 2 . Recycler 1 | . 1 . Watcher 1 | . 1 . Swarmer 3 | . 3 . Grunt 7 | . 7 . Best Kill Streak 7 | . 7 . Combat Bots Only 5 | . 5 . Max Kills in Single Turn 2 | . 2 . Gunslinging 1 | . 1 . Exploded . | . . . Melee . | . . . Uniques/NPCs Destroyed . | . . . Combat | -11 -10 -9 -------- Run | Scr Mat Mat Damage Taken 477 | . 398 79 Core 28 | . 28 . Absorbed by Shields . | . . . Core Remaining (%) 94 | 100 88 . Volleys Fired 36 | . 33 3 Largest 3 | . 2 3 Hottest 70 | . 70 60 Shots Fired 70 | . 61 9 Gun 70 | . 61 9 Cannon . | . . . Launcher . | . . . Special . | . . . Kinetic 51 | . 42 9 Thermal 19 | . 19 . Explosive . | . . . Electromagnetic . | . . . Robot Hit Streak 12 | . 12 8 Robot Miss Streak 2 | . 2 1 Penetration Max . | . . . Secondary Targets 5 | . 5 . Max Gunslinging Chain 1 | . 1 . Shots Hit Robots 59 | . 51 8 Core Hits 27 | . 27 . Critical Hits . | . . . Critical Kills . | . . . Critical Parts Destroyed . | . . . Melee Attacks . | . . . Impact . | . . . Slashing . | . . . Piercing . | . . . Sneak Attacks . | . . . Combat Hostiles . | . . . Follow-up Attacks . | . . . Damage Inflicted 631 | . 535 96 Guns 631 | . 535 96 Cannons . | . . . Explosions . | . . . Melee . | . . . Ramming . | . . . Kinetic 405 | . 309 96 Thermal 226 | . 226 . Explosive . | . . . Electromagnetic . | . . . Impact . | . . . Slashing . | . . . Piercing . | . . . Highest Corruption . | . . . Average Corruption . | . . . Corruption Purged . | . . . Overload Shots . | . . . Overflow Damage . | . . . Projectiles . | . . . Explosions . | . . . Melee . | . . . Knockbacks . | . . . Impact . | . . . Kinetic . | . . . Secondary . | . . . Self-Inflicted Damage . | . . . Shots . | . . . Rammed . | . . . Targets Rammed . | . . . Kicked . | . . . Crushed . | . . . Highest Temperature 166 | . 166 6 Average Temperature 58 | . 61 3 Received Heat Transfer 276 | . 246 30 Siege Activations . | . . . Robots Corrupted . | . . . Combat Hostiles . | . . . Parts Fried . | . . . Impact Corruptions . | . . . Robots Melted . | . . . Combat Hostiles . | . . . Parts Melted 4 | . 4 . Heat Transferred 666 | . 666 . Parts Sabotaged . | . . . Parts Stolen . | . . . Parts Stripped . | . . . Power Chain Reactions . | . . . Missiles Intercepted . | . . . Alert | -11 -10 -9 ------- Run | Scr Mat Mat Peak Influence 228 | . 228 30 Average Influence 55 | . 63 30 Maximum Alert Level 1 | . 1 . Low Security (%) 92 | . . . Level 1 7 | . . . Level 2 . | . . . Level 3 . | . . . Level 4 . | . . . Level 5 . | . . . High Security . | . . . Max Security . | . . . Squads Dispatched . | . . . Investigation . | . . . Extermination . | . . . Reinforcement . | . . . Assault . | . . . Garrison . | . . . Intercept . | . . . Construction Impeded . | . . . Haulers Reinforced . | . . . Stealth | -11 -10 -9 --------- Run | Scr Mat Mat Distress Signals 4 | . 2 2 Communications Jammed . | . . . Distress Signals . | . . . Times Spotted 19 | . 14 5 Peak Tracking Total 7 | . 6 7 Tactical Retreats . | . . . Traps | -11 -10 -9 ------- Run | Scr Mat Mat Traps Triggered . | . . . Indirectly . | . . . Trap Hack Attempts . | . . . Triggered . | . . . Disarmed . | . . . Reprogrammed . | . . . Reused . | . . . Traps Extracted . | . . . Installed . | . . . Triggered . | . . . Machines | -11 -10 -9 ---------- Run | Scr Mat Mat Machines Disabled . | . . . Max in Single Turn . | . . . Machines Sabotaged . | . . . Garrisons Compromised . | . . . Overloaded Fab Kills . | . . . Fab Network Shutdowns . | . . . Hacking | -11 -10 -9 --------- Run | Scr Mat Mat Machines Accessed 3 | . 3 . Terminals 3 | . 3 . Fabricators . | . . . Repair Stations . | . . . Recycling Units . | . . . Scanalyzers . | . . . Garrison Access . | . . . Total Hacks 3 | . 3 . Successful 3 | . 3 . Failed . | . . . Catastrophic . | . . . Database Lockouts . | . . . Manual . | . . . Terminals 3 | . 3 . Fabricators . | . . . Repair Stations . | . . . Recycling Units . | . . . Scanalyzers . | . . . Garrison Access . | . . . Terminal Hacks 3 | . 3 . Prototype ID Bank 1 | . 1 . Hauler Manifests 1 | . 1 . Zone Layout 1 | . 1 . Fabricator Hacks . | . . . Repair Station Hacks . | . . . Recycling Unit Hacks . | . . . Scanalyzer . | . . . Garrison Access Hacks . | . . . Unauthorized Hacks . | . . . Terminals . | . . . Fabricators . | . . . Repair Stations . | . . . Recycling Units . | . . . Scanalyzers . | . . . Garrison Access . | . . . Data Cores Recovered . | . . . Used . | . . . Hacking Detections 2 | . 2 . Full Trace Events . | . . . Feedback Events . | . . . Feedback Blocked . | . . . Robot Schematics Acquired . | . . . Robots Built . | . . . Matter . | . . . Time . | . . . Total Robot Build Rating . | . . . Part Schematics Acquired . | . . . Parts Built . | . . . Matter . | . . . Time . | . . . Total Part Build Rating . | . . . Parts Repaired . | . . . Time . | . . . Parts Recycled . | . . . Recycled Matter . | . . . Retrieved Matter . | . . . Retrieved Components . | . . . Parts Scanalyzed . | . . . Part Schematics Acquired . | . . . Parts Damaged . | . . . Bothacking | -11 -10 -9 ------------ Run | Scr Mat Mat Used RIF Installer . | . . . Robots Hacked . | . . . Non-combat . | . . . Combat . | . . . Robot Hacks Applied . | . . . Relay Couplers Released . | . . . Robots Rewired . | . . . Allies Hacked . | . . . Hacks Repelled . | . . . Allies | -11 -10 -9 -------- Run | Scr Mat Mat Total Allies . | . . . Largest Group . | . . . Highest-Rated Group . | . . . Highest-Rated Ally . | . . . Total Orders . | . . . Ally Attacks . | . . . Total Damage . | . . . Kills . | . . . Allies Corrupted . | . . . Allies Melted . | . . . Intel | -11 -10 -9 ------- Run | Scr Mat Mat Robot Analysis Total . | . . . Derelict Logs Recovered . | . . . Drone Launches . | . . . Drone Recoveries . | . . . Exploration | -11 -10 -9 ------------- Run | Scr Mat Mat Turns Passed 829 | 78 696 55 Spaces Moved 436 | 52 357 27 Core 14 | 14 . . Treads 422 | 38 357 27 Legs . | . . . Wheels . | . . . Hover . | . . . Flight . | . . . Fastest Speed 50 | 50 160 160 Average Speed 156 | 130 160 160 Slowest Speed 160 | 160 160 160 Overloaded Moves . | . . . Propulsion Burnouts . | . . . Robots Hopped . | . . . Cave-ins Triggered . | . . . Exploration Rate (%) 21 | 5 53 6 Regions Visited 2 Branch Regions . Pre-discovered Areas . | . . . Known Exits Taken . | . . . Unknown Exits Taken 2 | 1 1 . Scrap Searched . | . . . Spaces Dug . | . . . Terrain Destroyed . | . . . Melee . | . . . Projectile . | . . . AOE . | . . . Actions | -11 -10 -9 --------- Run | Scr Mat Mat Total 522 | 62 428 32 Wait 9 | . 9 . Move 434 | 51 356 27 Hop . | . . . Pick Up 20 | 5 15 . Fast Attach 1 | 1 . . Attach 9 | 5 2 2 Detach . | . . . Swap 6 | . 6 . Drop 7 | . 7 . Fire 36 | . 33 3 Melee . | . . . Ram . | . . . Kick . | . . . Crush . | . . . Escape Stasis . | . . . Rewire . | . . . Trap . | . . . Miscellaneous . | . . . Route ------- -11/Scrapyard -10/Materials (discovered 2 exits: [*Mat] / [*Min]) -9/Materials History --------- Turn | Location | Event 11 | -11/Scrapyard | Discovered new exit (range 13) 79 | -11/Scrapyard | Entered Materials 161 | -10/Materials | Discovered new exit (range 9) 308 | -10/Materials | Build established: Mutant 497 | -10/Materials | Discovered new exit (range 15) 775 | -10/Materials | Entered another Materials area 775 | -9/Materials | Evolved 2 slots: Propulsion x1, Weapon x1 830 | -9/Materials | Self-destructed Last Messages --------------- 00638_ Acquired Lgt. Treads. 00644_ Dropped Lgt. Treads. 00647_ Acquired Lgt. Treads. 00650_ Acquired Assault Rifle. 00652_ Dropped Lgt. Assault Rifle. 00655_ Acquired Assault Rifle. 00691_ Acquired 30 matter. 00700_ Dropped Lgt. Nuclear Core. 00700_ Acquired Grenade Launcher. 00709_ Connecting with Terminal... >>Prototypes Downloading prototype IDs... Imp. Medium Laser Cld. Ion Engine 00731_ T-07 Excavator is excavating. 00732_ K-01 Serf collects debris. PARAMETERS=PROPULSION_1,WEAPON_1 LOCATION=UNKNOWN GOAL=ESCAPE 00819_ W-16 Scout distress signal alerts nearby ally. Map ----- +----------------------------------------------------+ | ?????????????????????????????????????????????????? | | ?????????????????????????????????????????????????? | | ?????????????????????????????????????????????????? | | ?????????????????????????????????????????????????? | | ?????????????????????????????????????????????????? | | ?????????????????????????????????????????????????? | | ?????????????????????????????????????????????????? | | ?????????????????????????????????????????????????? | | ??????????????????????????????????????? ??????? | | ??????????????????????????????????????? #?????? | | ??????????????????????????????????????# #?????? | | ??????????????????????????????????????# #?????? | | ??????????????????##########??????????# #?????? | | ??????????????????? #??????????# +?????? | | ??????????????????? #??????????# #?????? | | ???????????????????? ???????????# #?????? | | ???????????????????? ???????????# #?????? | | ????????????????????? ????????????# #?????? | | ????????????????????? ????????????# #?????? | | ?????????????????????? ?????????????# #?????? | | ?????????????????????? ?????????????# #?????? | | ????????????????????###+###???????????# #?????? | | ????????????????????# ############# #####?? | | ????????????????????# #?? | | ????????????????????# T gg #?? | | ????????????????????# @b #?? | | ????????????????????# !###+##################?? | | ????????????????????## ## ?????????????????? | | ?????????????????????#w ## ???????????????? | | ?????????????????????# ## ?????????????? | | ?????????????????????# ## ???????????? | | ?????????????????????# ## ?????????? | | ????????????????????? ## #????????? | | ????????????????????## u ################????????? | | ?????????????????????### #???????????????????????? | | ???????????????????????? ????????????????????????? | | ???????????????????????? ????????????????????????? | | ???????????????????????? ????????????????????????? | | ???????????????????????? ????????????????????????? | | ????????????????????????+????????????????????????? | | ?????????????????????????????????????????????????? | | ?????????????????????????????????????????????????? | | ?????????????????????????????????????????????????? | | ?????????????????????????????????????????????????? | | ?????????????????????????????????????????????????? | | ?????????????????????????????????????????????????? | | ?????????????????????????????????????????????????? | | ?????????????????????????????????????????????????? | | ?????????????????????????????????????????????????? | | ?????????????????????????????????????????????????? | +----------------------------------------------------+ Best States ------------- Heat Dissipation 28 Energy Generation 10 Energy Capacity 250 Matter Stores 300 Matter Capacity 300 Sight Range 16 Terrain Scan Density 10 Resistance: KI 20 Resistance: TH 20 Resistance: EX 20 Resistance: EM 20 Resistance: I 20 Resistance: S 20 Resistance: P 20 Evasion (%) 50 Recoil Reduction 3 Item Schematics ----------------- None Robot Schematics ------------------ None Fabricated ------------ Nothing Alien Tech Used ----------------- None Achievements -------------- None Challenges ------------ None Game ------ Seed CloakingMyomerFilter Manual? 0 Play Time 00:05:42 Cumulative 159.1 hours Start 2019.10.27 @ 13:19:37 End 2019.10.27 @ 13:29:52 Sessions 1 Manual Loads 0 Difficulty Adventurer Special Mode None Game No. 256 Rogue 226 Adventurer 15 Explorer 0 Win Type - Total 1 Types 1/0/0/0/0/0/0 Lore% 42 Gallery% 58 Achievement% 23 Wizard Run 0 Options --------- ASCII 0 Keyboard 0 Movement Mouse Keybinds 0 Fullscreen 0 Font 16/SmallcapsGlow Map View 76x50 Tactical HUD 1 Map Filters NONE Filters NONE Steam 1 RUN: 4bad58db-09b5-4440-adb3-3d154d9fef0e